Cogmind - Beta 15 @@@ ROGUE MODE // 2025.07.15 @ 13:04:22 Player: beans Result: Destroyed by S-27 Virus with Autogun Performance ------------- Evolutions (4) 2000 Regions Visited (7) 1400 Robots Destroyed (6) 30 Value Destroyed (132) 132 Prototype IDs (9) 180 Alien Tech Used (0) 0 Bonus (800) 800 TOTAL SCORE: 4542 Bonus ------- Registered with UFD 300 Met Optimus in HQ 500 Cogmind --------- Core Integrity 0/850 Matter 124/300 Energy 85/100 System Corruption 39% Temperature Cool (0) Movement Core (50) Location -6/Factory Parts ------- > --- POWER (2) -------- (None) > --- PROPULSION (4) --- (None) > --- UTILITY (5) ------ (None) > --- WEAPON (4) ------- (None) > --- INVENTORY (5) ---- (None) Peak State ------------ > --- POWER ------------ (None) > --- PROPULSION ------- Potential Leg > --- UTILITY ---------- Experimental Signal Interpreter Surveybot 17 Chip Advanced Targeting Computer Expert System > --- WEAPON ----------- Medium Laser Phase Cannon > --- INVENTORY -------- Nuclear Pulse Thruster Mining Laser [Rating: 41] Favorites ----------- Power Ion Engine Engine Ion Engine Power Core Light Nuclear Core Propulsion Light Treads Treads Light Treads Leg Potential Leg Flight Unit Nuclear Pulse Thruster Utility Improved Terrain Scanner Device Improved Terrain Scanner Processor Experimental Signal Interpreter Weapon Medium Laser Energy Gun Medium Laser Energy Cannon Phase Cannon Special Weapon Mining Laser Build | -11 -10 -10 -10 -9 -6 -6 -6 ------- Run | Yrd Mat Min Sub Scr Fac Was Fac Slots Evolved 8 | . . . . . 8 . . Power 1 | . . . . . 1 . . Propulsion 2 | . . . . . 2 . . Utility 3 | . . . . . 3 . . Weapon 2 | . . . . . 2 . . Parts Attached 23 | 5 . 2 . 10 3 2 1 Power 3 | 1 . . . 2 . . . Engine 2 | 1 . . . 1 . . . Core 1 | . . . . 1 . . . Reactor . | . . . . . . . . Propulsion 7 | 2 . . . 3 . 2 . Treads 2 | 2 . . . . . . . Leg 2 | . . . . 2 . . . Wheel . | . . . . . . . . Hover . | . . . . . . . . Flight 3 | . . . . 1 . 2 . Utility 7 | . . 1 . 4 2 . . Device 2 | . . 1 . 1 . . . Storage . | . . . . . . . . Processor 5 | . . . . 3 2 . . Hackware . | . . . . . . . . Protection . | . . . . . . . . Artifact . | . . . . . . . . Weapon 6 | 2 . 1 . 1 1 . 1 Energy Gun 3 | 2 . . . . . . 1 Energy Cannon 1 | . . . . . 1 . . Ballistic Gun . | . . . . . . . . Ballistic Cannon . | . . . . . . . . Launcher . | . . . . . . . . Special Weapon 2 | . . 1 . 1 . . . Impact Weapon . | . . . . . . . . Slashing Weapon . | . . . . . . . . Piercing Weapon . | . . . . . . . . Special Melee Weapon . | . . . . . . . . Unidentified Prototypes 3 | . . . . 3 . . . Corrupted Parts 1 | . . . . . . 1 . System Corruption 10 | . . . . . . 10 . Parts Lost 12 | . . . . 4 . 5 3 Power 1 | . . . . 1 . . . Propulsion 3 | . . . . . . 1 2 Utility 2 | . . . . 1 . 1 . Weapon 6 | . . . . 2 . 3 1 Highest Loss Streak 4 | . . . . 4 . 2 2 To Critical Strikes 1 | . . . . . . . 1 Average Backups 2 | . . 1 3 3 2 1 . Power . | . . . . . . . . Propulsion . | . . . . . . . . Utility . | . . . . . . . . Weapon 1 | . . . 2 2 1 . . Tool/Special . | . . . . . . . . Unused Backups 2 | . . . . 2 . . . Power . | . . . . . . . . Propulsion . | . . . . . . . . Utility . | . . . . . . . . Weapon 1 | . . . . 1 . . . Tool/Special 1 | . . . . 1 . . . Average Slot Usage (%) 71 | . 71 78 85 77 36 22 3 Engine 8 | . 14 14 14 5 . . . Core 4 | . . . . 8 . . . Treads 11 | . 28 28 28 1 . . . Flight 6 | . . . . 12 . 3 3 Device 8 | . . 7 14 11 . . . Processor 4 | . . . . 7 22 8 . Energy Gun 24 | . 28 27 25 27 6 1 . Peak Build Rating 41 | 5 5 8 8 40 41 41 10 Average Rating 14 | 3 5 6 8 19 34 20 2 On Entrance 11 | . 5 5 8 8 27 41 1 Naked Turns 93 | . . . . . . 9 84 Heaviest Build 14 | 9 9 10 10 14 10 10 4 Greatest Support 60 | 40 40 40 40 60 30 30 12 Greatest Overweight (x) 2 | . . . . 2 . 1 1 Average Overweight (x) . | . . . . 1 . . . Largest Inventory Capacity 5 | 5 5 5 5 5 5 5 5 Average Capacity 5 | 5 5 5 5 5 5 5 5 Most Carried 5 | 3 . 3 3 5 4 4 2 Average Carried 2 | . . 1 3 3 2 1 . Final Capacity 5 | 5 5 5 5 5 5 5 5 Final Carried 3 | . . 3 3 3 2 2 . Class Distribution -------------------- 100% | Mutant Dominant Class ---------------- Mutant | -10/Materials Mutant | -10/Mines Mutant | -10/Subcaves Mutant | -9/Scraptown Mutant | -6/Factory Mutant | -6/Waste Mutant | -6/Factory Resources | -11 -10 -10 -10 -9 -6 -6 -6 ----------- Run | Yrd Mat Min Sub Scr Fac Was Fac Matter Collected 402 | 98 . 107 . 178 . . 19 Remotely . | . . . . . . . . Salvage Created 158 | . . 59 . 99 . . . Parts 9 | . . 8 . 1 . . . Haulers Intercepted . | . . . . . . . . Recyclers Shooed 1 | . . 1 . . . . . Parts Field Recycled . | . . . . . . . . Retrieved Matter . | . . . . . . . . Parts Self-Destructed 9 | . . . . 9 . . . Prevented . | . . . . . . . . Kills | -11 -10 -10 -10 -9 -6 -6 -6 ------- Run | Yrd Mat Min Sub Scr Fac Was Fac Combat Hostiles Destroyed 2 | . . . . 2 . . . Cannons 2 | . . . . 2 . . . Classes Destroyed 4 | . . 1 . 3 . . . Tunneler 3 | . . 3 . . . . . Turret 1 | . . . . 1 . . . Federalist 1 | . . . . 1 . . . Scrapper 1 | . . . . 1 . . . Best Kill Streak 2 | . . 1 . 2 . . . Combat Bots Only 2 | . . . . 2 . . . Max Kills in Single Turn 1 | . . 1 . 1 . . . Gunslinging . | . . . . . . . . Exploded . | . . . . . . . . Melee . | . . . . . . . . Uniques/NPCs Destroyed . | . . . . . . . . Combat | -11 -10 -10 -10 -9 -6 -6 -6 -------- Run | Yrd Mat Min Sub Scr Fac Was Fac Hostile Shots Fired 127 | . . . . 43 1 5 78 Missed 39 | . . . . 9 . . 30 Hits 88 | . . . . 34 1 5 48 Melee 5 | . . . . . . 5 . Projectile 83 | . . . . 34 1 . 48 Critical Strikes 3 | . . . . . . 1 2 Damage Taken 1486 | . . . . 509 18 231 728 Core 952 | . . . . 94 18 231 609 Absorbed by Shields . | . . . . . . . . Regen/Repaired (Parts) 36 | . . . . 36 . . . Core Remaining (%) 81 | 100 . . . 62 . . . Volleys Fired 48 | . . 12 . 11 . 20 5 Largest 2 | . . 2 . 2 . 2 1 Hottest 150 | . . 100 . 150 . 135 85 Shots Fired 73 | . . 21 . 22 . 25 5 Gun 41 | . . 18 . 14 . 4 5 Cannon 13 | . . . . . . 13 . Launcher . | . . . . . . . . Special 19 | . . 3 . 8 . 8 . Kinetic . | . . . . . . . . Thermal 73 | . . 21 . 22 . 25 5 Explosive . | . . . . . . . . Electromagnetic . | . . . . . . . . Robot Hit Streak 13 | . . 4 . 13 . 4 1 Robot Miss Streak 2 | . . 2 . 1 . 2 2 Penetration Max . | . . . . . . . . Secondary Targets . | . . . . . . . . Shots Hit Robots 35 | . . 9 . 13 . 11 2 Core Hits 12 | . . 3 . 8 . 1 . Critical Kills . | . . . . . . . . Critical Parts Destroyed . | . . . . . . . . Critical Strikes 2 | . . 2 . . . . . Burn 2 | . . 2 . . . . . Melee Attacks . | . . . . . . . . Impact . | . . . . . . . . Slashing . | . . . . . . . . Piercing . | . . . . . . . . Sneak Attacks . | . . . . . . . . Combat Hostiles . | . . . . . . . . Follow-up Attacks . | . . . . . . . . Damage Inflicted 679 | . . 113 . 179 . 343 44 Guns 299 | . . 113 . 111 . 39 36 Cannons 304 | . . . . . . 304 . Explosions . | . . . . . . . . Melee . | . . . . . . . . Ramming 21 | . . . . 13 . . 8 Kinetic . | . . . . . . . . Thermal 658 | . . 113 . 166 . 343 36 Explosive . | . . . . . . . . Electromagnetic . | . . . . . . . . Impact . | . . . . . . . . Slashing . | . . . . . . . . Piercing . | . . . . . . . . Highest Corruption 39 | . . . . 1 . 39 39 Average Corruption 24 | . . . . 1 . 20 39 Corruption Purged . | . . . . . . . . Corruption Blocked . | . . . . . . . . Effects 39 | . . . . 1 . 28 10 Message Errors 2 | . . . . . . 2 . Matter Fused 9 | . . . . . . 7 2 Energy Discharges 4 | . . . . . . 2 2 Parts Rejected 3 | . . . . . . 2 1 Data Loss (minor) 4 | . . . . . . 2 2 Data Loss (major) 2 | . . . . 1 . 1 . Misfires 1 | . . . . . . 1 . Alerts 1 | . . . . . . 1 . Misdirections 12 | . . . . . . 9 3 Weapon Failures 1 | . . . . . . 1 . Overload Shots . | . . . . . . . . Overflow Damage . | . . . . . . . . Projectiles . | . . . . . . . . Explosions . | . . . . . . . . Melee . | . . . . . . . . Knockbacks . | . . . . . . . . Impact . | . . . . . . . . Kinetic . | . . . . . . . . Secondary . | . . . . . . . . Self-Inflicted Damage 3 | . . . . . . . 3 Shots . | . . . . . . . . Rammed 2 | . . . . . . . 2 Targets Rammed 5 | . . . . 3 . . 2 Kicked 3 | . . . . 3 . . . Crushed . | . . . . . . . . Highest Temperature 365 | . . 42 . 365 . 72 50 Average Temperature 67 | . . 21 . 131 . 23 26 Received Heat Transfer 261 | . . . . 252 9 . . Siege Activations . | . . . . . . . . Martial Activations . | . . . . . . . . Shielding Activations . | . . . . . . . . Robots Disrupted . | . . . . . . . . Combat Hostiles . | . . . . . . . . Robots Corrupted . | . . . . . . . . Combat Hostiles . | . . . . . . . . Parts Fried . | . . . . . . . . Impact Corruptions . | . . . . . . . . Robots Melted . | . . . . . . . . Combat Hostiles . | . . . . . . . . Parts Melted . | . . . . . . . . Heat Transferred 1723 | . . 481 . 661 . 481 100 Parts Sabotaged . | . . . . . . . . Parts Stolen . | . . . . . . . . Parts Stripped . | . . . . . . . . Power Chain Reactions . | . . . . . . . . Alert | -11 -10 -10 -10 -9 -6 -6 -6 ------- Run | Yrd Mat Min Sub Scr Fac Was Fac Maximum Alert Level . | . . . . . . . . Low Security (%) 100 | 100 100 100 . . 100 100 100 Level 1 . | . . . . . . . . Level 2 . | . . . . . . . . Level 3 . | . . . . . . . . Level 4 . | . . . . . . . . Level 5 . | . . . . . . . . High Security . | . . . . . . . . Max Security . | . . . . . . . . Peak Influence 53 | . . 5 . . . 1 53 Initial . | . . . . . . . . Average 1 | . . . . . . . 25 Influence Increases 81 | . . 15 . . . 3 63 Destroy 0b10 Robot/NC 15 | . . 15 . . . . . Successful Hack 18 | . . . . . . . 18 Destroy Structure 3 | . . . . . . 3 . Lose Combat Pursuer 45 | . . . . . . . 45 Influence Decreases 68 | . . 15 . . . 3 50 Time Decay 57 | . . 15 . . . 2 40 Lost Part 10 | . . . . . . . 10 Lost Ally 1 | . . . . . . 1 . Squads Dispatched 1 | . . . . . . . 1 Investigation . | . . . . . . . . Extermination . | . . . . . . . . Reinforcement 1 | . . . . . . . 1 Assault . | . . . . . . . . Garrison . | . . . . . . . . Intercept . | . . . . . . . . Searches Triggered . | . . . . . . . . Construction Impeded . | . . . . . . . . Haulers Reinforced . | . . . . . . . . Active Scanning Responses . | . . . . . . . . Cargo Convoy Interrupts . | . . . . . . . . Stealth | -11 -10 -10 -10 -9 -6 -6 -6 --------- Run | Yrd Mat Min Sub Scr Fac Was Fac Distress Signals 1 | . . . . . . . 1 Communications Jammed . | . . . . . . . . Distress Signals . | . . . . . . . . Times Spotted 28 | . . . . 9 3 9 7 Peak Tracking Total 6 | . . . . 5 4 6 4 Tactical Retreats 3 | . . . . . . 2 1 Traps | -11 -10 -10 -10 -9 -6 -6 -6 ------- Run | Yrd Mat Min Sub Scr Fac Was Fac Traps Triggered 1 | . . . . . 1 . . Indirectly . | . . . . . . . . Trap Hack Attempts . | . . . . . . . . Triggered . | . . . . . . . . Disarmed . | . . . . . . . . Reprogrammed . | . . . . . . . . Reused . | . . . . . . . . Traps Extracted . | . . . . . . . . Installed . | . . . . . . . . Triggered . | . . . . . . . . Machines | -11 -10 -10 -10 -9 -6 -6 -6 ---------- Run | Yrd Mat Min Sub Scr Fac Was Fac Machines Disabled 3 | . . . . 3 . . . Max in Single Turn 1 | . . . . 1 . . . Machines Repaired . | . . . . . . . . Machines Dismantled . | . . . . . . . . Machines Sabotaged . | . . . . . . . . Overloaded Fab Kills . | . . . . . . . . Hacking | -11 -10 -10 -10 -9 -6 -6 -6 --------- Run | Yrd Mat Min Sub Scr Fac Was Fac Machines Accessed 4 | . . . . 3 . . 1 Terminals . | . . . . . . . . Fabricators 1 | . . . . . . . 1 Repair Stations . | . . . . . . . . Recycling Units . | . . . . . . . . Scanalyzers . | . . . . . . . . Garrison Access . | . . . . . . . . Total Hacks 22 | . . . . 21 . . 1 Successful 22 | . . . . 21 . . 1 Failed . | . . . . . . . . Catastrophic . | . . . . . . . . Database Lockouts . | . . . . . . . . Manual . | . . . . . . . . Terminals . | . . . . . . . . Fabricators 1 | . . . . . . . 1 Repair Stations . | . . . . . . . . Recycling Units . | . . . . . . . . Scanalyzers . | . . . . . . . . Garrison Access . | . . . . . . . . Terminal Hacks 21 | . . . . 21 . . . Record 21 | . . . . 21 . . . Fabricator Hacks 1 | . . . . . . . 1 Build 1 | . . . . . . . 1 Repair Station Hacks . | . . . . . . . . Recycling Unit Hacks . | . . . . . . . . Scanalyzer . | . . . . . . . . Garrison Access Hacks . | . . . . . . . . Unauthorized Hacks . | . . . . . . . . Terminals . | . . . . . . . . Fabricators . | . . . . . . . . Repair Stations . | . . . . . . . . Recycling Units . | . . . . . . . . Scanalyzers . | . . . . . . . . Garrison Access . | . . . . . . . . Data Cores Recovered . | . . . . . . . . Used . | . . . . . . . . Hacking Detections . | . . . . . . . . Full Trace Events . | . . . . . . . . Feedback Events . | . . . . . . . . Feedback Blocked . | . . . . . . . . Robot Schematics Acquired . | . . . . . . . . Robots Built . | . . . . . . . . Authchips . | . . . . . . . . Time 76 | . . . . . . . 76 Total Robot Build Rating . | . . . . . . . . Part Schematics Acquired . | . . . . . . . . Parts Built . | . . . . . . . . Authchips . | . . . . . . . . Time . | . . . . . . . . Total Part Build Rating . | . . . . . . . . Parts Repaired . | . . . . . . . . Time . | . . . . . . . . Parts Recycled . | . . . . . . . . Recycled Matter . | . . . . . . . . Retrieved Matter . | . . . . . . . . Retrieved Components . | . . . . . . . . Parts Scanalyzed . | . . . . . . . . Part Schematics Acquired . | . . . . . . . . Parts Damaged . | . . . . . . . . Bothacking | -11 -10 -10 -10 -9 -6 -6 -6 ------------ Run | Yrd Mat Min Sub Scr Fac Was Fac Used RIF Installer . | . . . . . . . . Robots Hacked . | . . . . . . . . Non-combat . | . . . . . . . . Combat . | . . . . . . . . Robot Hacks Applied . | . . . . . . . . Relay Couplers Released . | . . . . . . . . Fabnet Peak Effective % . | . . . . . . . . Robots Rewired . | . . . . . . . . Allies Hacked . | . . . . . . . . Hacks Repelled . | . . . . . . . . Allies | -11 -10 -10 -10 -9 -6 -6 -6 -------- Run | Yrd Mat Min Sub Scr Fac Was Fac Total Allies 1 | . . . . . . 1 . Largest Group 1 | . . . . . . 1 . Highest-Rated Group 31 | . . . . . . 31 . Highest-Rated Ally 31 | . . . . . . 31 . Total Orders 2 | . . . . 2 . . . EXPLORE 1 | . . . . 1 . . . RETURN 1 | . . . . 1 . . . Ally Attacks 9 | . . . . . . 9 . Total Damage 128 | . . . . . . 128 . Kills . | . . . . . . . . Allies Corrupted . | . . . . . . . . Allies Melted 3 | . . . . 3 . . . Intel | -11 -10 -10 -10 -9 -6 -6 -6 ------- Run | Yrd Mat Min Sub Scr Fac Was Fac Active Infowar (turns) 2304 | . . 1127 51 1126 . . . Terrain 2304 | . . 1127 51 1126 . . . Robot Analysis Total . | . . . . . . . . Derelict Logs Recovered 1 | . . 1 . . . . . Drone Launches 3 | . . . . 3 . . . Drone Recoveries 3 | . . . . 3 . . . Exploration | -11 -10 -10 -10 -9 -6 -6 -6 ------------- Run | Yrd Mat Min Sub Scr Fac Was Fac Turns Passed 5405 | 60 34 2005 51 2650 68 409 128 Spaces Moved 2486 | 41 22 327 30 1302 130 411 223 Core 185 | 13 . . . . . 23 149 Treads 482 | 28 22 327 30 75 . . . Legs 434 | . . . . 103 130 201 . Wheels . | . . . . . . . . Hover . | . . . . . . . . Flight 1385 | . . . . 1124 . 187 74 Fastest Speed 37 | 50 160 160 160 45 45 37 37 Average Speed 119 | 125 160 160 160 144 45 66 45 Slowest Speed 200 | 160 160 160 160 200 45 120 100 Overloaded Moves 387 | . . . . 103 130 154 . Propulsion Burnouts . | . . . . . . . . Robots Hopped 3 | . . . . . . . 3 Potential Cave-ins . | . . . . . . . . Cave-ins Triggered . | . . . . . . . . Exploration Rate (%) 30 | 3 6 41 4 94 7 85 5 Regions Visited 7 Branch Regions 3 Pre-discovered Areas . | . . . . . . . . Known Exits Taken 1 | . . . . 1 . . . Unknown Exits Taken 4 | 1 1 1 1 . . . . Scrap Searched 5 | . . 1 . 4 . . . Spaces Dug . | . . . . . . . . Terrain Destroyed 3 | . . . . . . 3 . Melee . | . . . . . . . . Projectile 3 | . . . . . . 3 . AOE . | . . . . . . . . Terrain Rammed . | . . . . . . . . Walls Destroyed . | . . . . . . . . Machines Disabled . | . . . . . . . . Actions | -11 -10 -10 -10 -9 -6 -6 -6 --------- Run | Yrd Mat Min Sub Scr Fac Was Fac Total 4810 | 50 21 1781 33 2042 139 504 240 Wait 2203 | . . 1437 3 694 4 58 7 Move 2474 | 40 21 326 29 1301 130 410 217 Hop 3 | . . . . . . . 3 Pick Up 32 | 5 . 4 . 11 2 8 2 Fast Attach 1 | . . . . 1 . . . Attach 28 | 5 . 1 . 7 3 8 4 Detach . | . . . . . . . . Swap 6 | . . 1 1 4 . . . Drop 10 | . . . . 10 . . . Fire 48 | . . 12 . 11 . 20 5 Melee . | . . . . . . . . Ram 2 | . . . . . . . 2 Kick 3 | . . . . 3 . . . Crush . | . . . . . . . . Escape Stasis . | . . . . . . . . Rewire . | . . . . . . . . Trap . | . . . . . . . . Miscellaneous . | . . . . . . . . Route ------- -11/Scrapyard -10/Materials -10/Mines (discovered 2 exits: [*Mat] / [*Sub]) -10/Subcaves (discovered 2 exits: Rec / *Scr) -9/Scraptown (discovered 2 exits: *Fac x2) -6/Factory -6/Waste -6/Factory History --------- Turn | Location | Event 5 | -11/Scrapyard | Discovered new exit (range 14) 61 | -11/Scrapyard | Entered Materials 71 | -10/Materials | Discovered new exit (range 15) 95 | -10/Materials | Entered Mines 264 | -10/Mines | Discovered new exit (range 3) 309 | -10/Mines | Build established: Mutant 2092 | -10/Mines | Discovered new exit (range 4) 2100 | -10/Mines | Entered Subcaves 2101 | -10/Subcaves | Approached by a straggling Scientist 2101 | -10/Subcaves | Identified exit to Recycling 2147 | -10/Subcaves | Scientist uncovered a shortcut to Scraptown 2151 | -10/Subcaves | Entered Scraptown 2389 | -9/Scraptown | Visited UFD Registry 2389 | -9/Scraptown | Registered with UFD as "Dualcutter" 2527 | -9/Scraptown | Heard Great Nut preacher, LISTEN AND RECITE! 2623 | -9/Scraptown | Discovered new exit (range 13) 2783 | -9/Scraptown | Visited TADAMA 2835 | -9/Scraptown | Visited Supply Room 2874 | -9/Scraptown | Visited Spacefarers 2942 | -9/Scraptown | Visited CR-KLE's Repair Center 2956 | -9/Scraptown | CR-KLE repaired 3 parts 3052 | -9/Scraptown | Visited Cyclists 3066 | -9/Scraptown | Entered Cyclist Reading Room 3134 | -9/Scraptown | Visited Junk Repository 3274 | -9/Scraptown | Visited Infowarlord's Domain 3283 | -9/Scraptown | Found Exp. Signal Interpreter 3311 | -9/Scraptown | Visited Chapter 10 3342 | -9/Scraptown | Visited Scrapoid Pod Storage 3562 | -9/Scraptown | Visited Science Testing Area 3592 | -9/Scraptown | Visited DA-N13 Charitable Foundation 3614 | -9/Scraptown | Found DCF Scrap (29 items) 3639 | -9/Scraptown | Visited Abandonware Association 3656 | -9/Scraptown | Learned abandonware demo "HACKBUD.EXE" 3656 | -9/Scraptown | Learned abandonware demo "TRNCOAT.EXE" 3689 | -9/Scraptown | Visited Cartography Club 3738 | -9/Scraptown | Discovered new exit (range 10) 3793 | -9/Scraptown | Found Surveybot 17 Chip 4201 | -9/Scraptown | Visited Junk Repository 4263 | -9/Scraptown | Met Optimus 4263 | -9/Scraptown | Accepted into 0bPrime 4328 | -9/Scraptown | Visited Curators Association 4663 | -9/Scraptown | Civil war broke out across Scraptown 4685 | -9/Scraptown | Found Prototype Leg 4686 | -9/Scraptown | Identified Potential Leg 4716 | -9/Scraptown | Visited A0-MCA Data Center 4729 | -9/Scraptown | Found Prototype Processor 4794 | -9/Scraptown | Identified Expert System 4801 | -9/Scraptown | Identified exit to Factory 4801 | -9/Scraptown | Entered Factory 4801 | -6/Factory | Evolved 8 slots: Power x1, Propulsion x2, Utility x3, Weapon x2 4829 | -6/Factory | Lost 4 parts (1p1u2w) 4869 | -6/Factory | Sucked down chute 4869 | -6/Factory | Entered Waste 4870 | -6/Waste | Met a frightened Derelict 4884 | -6/Waste | EMP discharged 4884 | -6/Waste | System corruption reached 10% 4892 | -6/Waste | Spotted C-40 Crusher 4892 | -6/Waste | Spotted C-40 Crusher 4902 | -6/Waste | Spotted C-40 Crusher 4907 | -6/Waste | Spotted C-40 Crusher 4919 | -6/Waste | Spotted C-40 Crusher 4930 | -6/Waste | Crushed by Compactor (1 part destroyed, 2 dropped) 4933 | -6/Waste | Crushed by Compactor (1 part destroyed, 2 dropped) 4968 | -6/Waste | Spotted C-40 Crusher 4984 | -6/Waste | EMP discharged 5058 | -6/Waste | Crushed by Compactor (1 part destroyed, 1 dropped) 5084 | -6/Waste | EMP discharged 5184 | -6/Waste | EMP discharged 5197 | -6/Waste | Crushed by Compactor (1 part destroyed, 2 dropped) 5212 | -6/Waste | System corruption reached 30% 5221 | -6/Waste | Discovered new exit (range 13) 5273 | -6/Waste | Crushed by Compactor (1 part destroyed, 1 dropped) 5278 | -6/Waste | Entered Factory 5353 | -6/Factory | Core integrity fell below 50% 5384 | -6/Factory | Core integrity fell below 20% 5406 | -6/Factory | Destroyed by S-27 Virus with Autogun Last Messages --------------- Nuclear Pulse Thruster destroyed. ALERT: Hostiles spotted, dispatching reinforcements to Terminal F009. System corrupted: Energy discharge (-23). System corrupted: Component data lost. Connecting with Fabricator... >>Build Building G-50 Soldier... ETC: 76 K-01 Serf cleans the Assembly Bed. K-01 Serf destroyed. System corrupted: Component data lost. System corrupted: Matter fused (-5). Acquired 19 matter. Slammed into S-27 Virus. System corrupted: Matter fused (-5). Critical hit (Destroy). Thermic Laser destroyed. Slammed into S-27 Virus. ALERT: Security rotation in progress. Map ----- +----------------------------------------------------+ | | | | | | | | | | | | | | | | | | | | | | | | | | | | | | | | | | | | | | | | | | | | | ?????????????#################???????????????????? | | ?????????????# #???????????????????? | | ?????????????# #???????????????????? | | ?????????????# @ #???????????????????? | | ?????????????# #???????????????????? | | ?????????????# "" #???????????????????? | | ?????????????# """""" """ ######??????????????? | | ???????????????"""""" F" + #??????????????? | | ???????????????"""""" """ ######??????????????? | | ?????????????# """""" s"" #???????????????????? | | ?????????????# s= #???????????????????? | | ?????????############s####+#######?????###+#####?? | | ????????? ?# = / ## ??? | | ?????????? """ # # ## #???? | | ?????????" """ ! # # ! = ## #???? | | ?????????" """ + # ## #???? | | ????????"" "" # # + #???? | | ?????????" "" # # # #???? | | ???????? ?# #####+######### #???? | | ???????? ?# #???? | | ??????? ??# #???? | | ?????? ??# #???? | | ?????# ! ???# #???? | | ?????? ???# #???? | | ??????########????###########+### #???? | | ????????????????????????????? ?# #???? | | ?????????????????????????????? # #???? | | ??????????????????????????????? # #???? | +----------------------------------------------------+ Best States ------------- Heat Dissipation 37 Energy Generation 18 Energy Capacity 250 Matter Stores 300 Matter Capacity 300 Sight Range 16 Terrain Scan Range 16 Terrain Scan Density 1210 Evasion (%) 66 Targeting Accuracy 8 Recoil Reduction 2 Item Schematics ----------------- None Robot Schematics ------------------ None Fabricated ------------ Nothing Repaired ---------- Nothing Alien Tech Used ----------------- None Achievements -------------- None Challenges ------------ None Game ------ Seed TractorMicroMicrothruster Manual? 0 Play Time 00:32:41 Cumulative 52.0 hours Start 2025.07.15 @ 12:28:22 End 2025.07.15 @ 13:04:22 Sessions 1 Manual Loads 0 Difficulty Rogue Special Mode None Game No. 235 Rogue 235 Adventurer 0 Explorer 0 Win Type - Total 0 Types 0/0/0/0/0/0/0/0/0/0 Lore% 37 Gallery% 29 Achievement% 24 Wizard Run 0 Options --------- Layout 2 ASCII 0 Keyboard 0 Movement Mouse Keybinds 0 Fullscreen 1 Font 24/Smallcaps Map View 50x44 Zoom Use 0% Tactical HUD 0 Map Filters NONE Filters NONE Steam 1 RUN: e67f6388-872c-4895-836e-03a2a554cdd3